Cogmind - Beta 14 @@@ ROGUE MODE // 2024.08.09 @ 18:34:29 Player: Pogmind Result: Destroyed by G-73 Enforcer with Phase Gun Performance ------------- Evolutions (8) 4000 Regions Visited (20) 4000 Robots Destroyed (582) 2910 Value Destroyed (24800) 24800 Prototype IDs (67) 1340 Alien Tech Used (2) 400 Bonus (6407) 6407 TOTAL SCORE: 43857 Bonus ------- Triggered High Security 500 High Alert Combat Kills 4399 Follower Combat Kills 1525 Aligned with FarCom 300 Met Zhirov 300 Friendly Fire -617 Cogmind --------- Core Integrity 0/1450 Matter 239/300 Energy 98/100 System Corruption 13% Temperature Cool (9) Movement Core (50) Location -2/Research Parts ------- > --- POWER (2) -------- (None) > --- PROPULSION (4) --- (None) > --- UTILITY (13) ----- (None) > --- WEAPON (4) ------- (None) > --- INVENTORY (5) ---- Light Quantum Reactor Compact Wheel Gravity Neutralizer Siege Articulator Advanced Remote Datajack Peak State ------------ > --- POWER ------------ Light Antimatter Reactor MA-1KR's Cyclogen > --- PROPULSION ------- Medium Treads Medium Treads Vampiric Heavy Siege Treads > --- UTILITY ---------- Advanced Heat Sink Advanced Heat Sink Huge Storage Unit Siege Articulator Enhanced Optical Array Expert System SHELL Armor Experimental EM Disruption Field Advanced Hacking Suite Ghost Barrier Advanced Corruption Screen > --- WEAPON ----------- Compact HERF Cannon Compact HERF Cannon Nova Cannon Null Cannon > --- INVENTORY -------- Advanced Heat Sink Experimental Energy Well Experimental Energy Well Gravity Neutralizer Siege Articulator Siege Articulator Structural Scanner Long-range Terrain Scanner Advanced Weapon Cycler Improved Hardlight Generator Long-range Tractor Beam Improved Potential Cannon Heavy Rocket Launcher Advanced Remote Datajack Field Lobotomy Kit [Rating: 177] Favorites ----------- Power Improved Deuterium Engine Engine Improved Deuterium Engine Power Core Neutrino Core Reactor Light Antimatter Reactor Propulsion Light Treads Treads Light Treads Leg Advanced Myomer Leg Wheel Compact Wheel Hover Unit Improved Airjet Flight Unit Improved VTOL Module Utility Huge Storage Unit Device Seismic Detector Storage Huge Storage Unit Processor Expert System Hackware Advanced Hacking Suite Protection Medium Reactive Plating Weapon Mini Assault Cannon Energy Gun Cooled Plasma Rifle Energy Cannon Particle Cannon Ballistic Gun Enhanced Autogun Ballistic Cannon Mini Assault Cannon Launcher Grenade Launcher Special Weapon Remote Datajack Impact Weapon Heavy Flail Slashing Weapon Great Axe Special Melee Weapon Dirty Datajack Build | -11 -10 -10 -10 -9 -8 -7 -7 -7 -7 -5 -5 -5 -4 -4 -4 -4 -3 -3 -3 -2 ------- Run | Yrd Mat Min Exi Min Mat Fac Sto Rec Scr Fac Upp Upp Fac Upp Upp Zhi Pro Res Tes Res Slots Evolved 16 | . . . . . 4 2 . . . 4 . . 2 . . . . 2 . 2 Power 1 | . . . . . . . . . . . . . . . . . . 1 . . Propulsion 2 | . . . . . 2 . . . . . . . . . . . . . . . Utility 11 | . . . . . 2 1 . . . 3 . . 2 . . . . 1 . 2 Weapon 2 | . . . . . . 1 . . . 1 . . . . . . . . . . Parts Attached 855 | 8 13 3 3 9 66 34 82 5 125 71 21 29 82 7 14 12 11 73 116 71 Power 35 | 1 1 1 . . 4 2 4 . 4 2 . 1 2 . . 2 . 2 4 5 Engine 15 | 1 1 1 . . 2 1 4 . 3 2 . . . . . . . . . . Core 4 | . . . . . 2 1 . . . . . 1 . . . . . . . . Reactor 16 | . . . . . . . . . 1 . . . 2 . . 2 . 2 4 5 Propulsion 88 | 2 . . . . 21 5 18 3 13 . 4 4 4 . 1 2 . 5 2 4 Treads 64 | 2 . . . . 20 4 13 3 9 . 3 3 1 . 1 . . 1 2 2 Leg 2 | . . . . . . . 1 . . . . . . . . 1 . . . . Wheel 18 | . . . . . . 1 1 . 4 . 1 1 3 . . 1 . 4 . 2 Hover 2 | . . . . . . . 2 . . . . . . . . . . . . . Flight 2 | . . . . . 1 . 1 . . . . . . . . . . . . . Utility 440 | 2 2 . 1 3 16 10 24 1 57 34 10 19 46 6 9 5 8 61 81 45 Device 346 | 1 . . . 3 7 10 17 1 32 25 8 16 38 5 7 4 8 51 75 38 Storage 22 | 1 2 . 1 . 3 . . . 6 . . . . . . 1 . 2 2 4 Processor 14 | . . . . . . . 1 . 3 . 1 . 2 . . . . 5 1 1 Hackware 7 | . . . . . . . . . . 4 . . 1 . . . . 1 1 . Protection 51 | . . . . . 6 . 6 . 16 5 1 3 5 1 2 . . 2 2 2 Artifact . | . . . . . . . . . . . . . . . . . . . . . Weapon 292 | 3 10 2 2 6 25 17 36 1 51 35 7 5 30 1 4 3 3 5 29 17 Energy Gun 33 | 1 2 . 2 2 4 5 3 . 1 . . . 8 . 1 2 2 . . . Energy Cannon 50 | . 5 1 . . 8 1 9 . . . . . . . . . . 1 12 13 Ballistic Gun 51 | 2 . . . . 3 5 2 . 12 16 3 2 6 . . . . . . . Ballistic Cannon 44 | . . . . . . . 7 1 20 . 1 . 3 . 2 . 1 1 7 1 Launcher 27 | . 2 1 . 4 3 . 5 . 3 2 . . 1 1 . 1 . 1 2 1 Special Weapon 19 | . . . . . . . . . 7 2 1 2 2 . 1 . . . 2 2 Impact Weapon 47 | . 1 . . . . 4 10 . 7 15 2 1 7 . . . . . . . Slashing Weapon 18 | . . . . . 7 2 . . 1 . . . . . . . . 2 6 . Piercing Weapon . | . . . . . . . . . . . . . . . . . . . . . Special Melee Weapon 3 | . . . . . . . . . . . . . 3 . . . . . . . Unidentified Prototypes 35 | . . . . . 5 . 8 . 6 . . . 1 . . 5 . 2 7 1 Corrupted Parts 1 | . . . . . . . . . . . . . . . . . . . . 1 System Corruption 2 | . . . . . . . . . . . . . . . . . . . . 2 Parts Lost 105 | . 2 . . 1 18 4 6 1 6 . 1 2 12 . 3 . 4 2 10 33 Power 12 | . . . . . 2 . 1 . 1 . . 1 1 . . . . . 1 5 Propulsion 30 | . . . . . 8 3 3 1 2 . 1 . 3 . . . 2 1 1 5 Utility 42 | . . . . 1 6 1 2 . 3 . . 1 3 . 3 . 2 1 6 13 Weapon 21 | . 2 . . . 2 . . . . . . . 5 . . . . . 2 10 Highest Loss Streak 15 | . 2 . . 1 9 2 1 1 2 . 1 1 3 . 2 . 3 1 3 15 To Critical Strikes . | . . . . . . . . . . . . . . . . . . . . . Average Slot Usage (%) 87 | . 99 100 71 99 98 95 93 100 82 75 79 80 82 89 88 72 86 92 88 81 Engine 5 | . 14 14 14 14 3 4 7 7 6 5 5 1 . . . . . . . . Reactor 1 | . . . . . . . . . . . . . 3 5 5 5 5 9 8 6 Treads 15 | . 28 28 28 28 35 25 19 30 13 . 5 11 7 5 4 5 5 5 9 9 Wheel 2 | . . . . . . 1 4 . 2 5 2 1 8 10 10 10 7 6 . 2 Device 14 | . 14 14 14 13 18 25 18 15 9 5 10 11 15 20 24 25 25 23 21 18 Storage 7 | . 14 14 14 14 9 7 7 7 6 5 5 5 5 5 5 5 5 4 4 5 Processor 9 | . . . . . . . 6 7 13 11 17 13 13 15 8 5 5 8 13 11 Hackware 2 | . . . . . . . . . . 8 5 5 6 5 5 5 5 8 9 6 Protection 4 | . . . . . 8 2 3 7 6 6 . . 3 . 3 5 5 3 . 3 Energy Gun 3 | . 11 . . 1 1 12 2 . . . . . 4 15 17 5 21 9 . . Energy Cannon 3 | . 13 28 . . 10 . 13 . . . . . . . . . . 3 8 9 Ballistic Gun 3 | . . . . . 1 5 . . 2 19 17 19 4 . . . . . . . Ballistic Cannon 6 | . . . . . . . 5 23 13 . . . 1 3 2 . . . 3 3 Launcher 1 | . . . . 26 . . . . . . . . . 1 . . . . . . Impact Weapon 1 | . 2 . . . . 1 . . 3 3 3 2 3 . . . . . . . Peak Build Rating 177 | 7 10 14 17 20 33 53 54 53 75 98 108 112 121 122 118 111 121 151 165 177 Average Rating 70 | 5 9 12 11 17 25 43 47 51 60 90 98 90 103 114 112 93 115 128 146 157 On Entrance 70 | . 7 10 14 17 18 33 53 48 51 75 97 103 86 115 112 111 111 120 141 149 Naked Turns 17 | . . . . . . . . . . . . . . . . . . . . 17 Heaviest Build 263 | 15 34 34 91 92 100 109 124 125 228 241 231 232 263 248 255 249 255 162 190 216 Greatest Support 145 | 40 40 40 40 40 83 85 91 96 93 35 130 130 57 26 26 26 70 145 145 126 Greatest Overweight (x) 33 | . . . 2 2 1 3 4 1 33 6 6 14 14 9 9 14 15 15 2 11 Average Overweight (x) 3 | . . . 1 2 1 1 2 1 3 6 4 5 8 9 9 8 8 5 1 3 Largest Inventory Capacity 35 | 8 15 15 25 25 25 25 25 25 35 35 35 35 35 35 35 35 35 35 25 25 Average Capacity 26 | 7 10 15 24 25 25 25 25 25 25 35 35 35 35 35 35 35 35 25 25 24 Most Carried 35 | 2 14 15 22 24 25 25 25 25 35 35 35 35 35 32 32 35 35 32 25 23 Average Carried 25 | 1 9 14 19 23 23 24 24 24 24 34 33 33 33 31 31 34 33 24 23 18 Final Capacity 35 | 8 15 15 25 25 25 25 25 25 35 35 35 35 35 35 35 35 35 25 25 5 Final Carried 35 | 2 14 15 20 23 25 25 25 25 35 35 35 35 31 32 31 32 33 25 23 5 Class Distribution -------------------- 27% | Mutant 13% | Hauler-Gunner 9% | Scavenger-Mutant 7% | Commander-Gunner 6% | Scavenger-Tank 5% | Hauler-Tank 4% | Hauler-Skirmisher 4% | Hacker-Tank 4% | Tank 3% | Gunner 3% | Hacker-Gunner Dominant Class ---------------- Mutant | -10/Materials Mutant | -10/Mines Mutant | -10/Exiles Mutant | -9/Mines Scavenger-Mutant | -8/Materials Scavenger-Mutant | -7/Factory Gunner | -7/Storage Commander-Gunner | -7/Recycling Mutant | -7/Scraptown Hauler-Tank | -5/Factory Hauler-Skirmisher | -5/Upper Caves Hauler-Gunner | -5/Upper Caves Hauler-Tank | -4/Factory Hauler-Gunner | -4/Upper Caves Hauler-Gunner | -4/Upper Caves Hauler-Mutant | -4/Zhirov Hauler-Gunner | -3/Proximity Caves Hacker-Tank | -3/Research Hacker-Tank | -3/Testing Scavenger-Gunner | -2/Research Resources | -11 -10 -10 -10 -9 -8 -7 -7 -7 -7 -5 -5 -5 -4 -4 -4 -4 -3 -3 -3 -2 ----------- Run | Yrd Mat Min Exi Min Mat Fac Sto Rec Scr Fac Upp Upp Fac Upp Upp Zhi Pro Res Tes Res Matter Collected 20095 | 322 169 172 94 177 823 440 1259 537 5211 1737 757 1639 1628 363 363 164 162 838 2200 1040 Remotely 5400 | . . . . . . . . . 2029 153 202 598 440 . 62 . . 487 888 541 Salvage Created 29400 | 185 634 18 . 28 2156 1099 2476 835 4013 1648 225 1388 2920 374 605 269 918 1428 2601 5580 Parts 1250 | 17 49 5 . 15 120 43 119 24 238 82 . 41 93 6 5 2 23 50 107 211 Haulers Intercepted 18 | . 2 . . . 4 1 6 . . . . . 1 . . . . . 2 2 Recyclers Shooed 14 | . 1 1 . . . . 2 2 . 3 . . 1 . . . . 1 2 1 Parts Field Recycled . | . . . . . . . . . . . . . . . . . . . . . Retrieved Matter . | . . . . . . . . . . . . . . . . . . . . . Parts Self-Destructed 54 | . . . . . . . . . . . . 28 . 3 4 . 19 . . . Prevented . | . . . . . . . . . . . . . . . . . . . . . Kills | -11 -10 -10 -10 -9 -8 -7 -7 -7 -7 -5 -5 -5 -4 -4 -4 -4 -3 -3 -3 -2 ------- Run | Yrd Mat Min Exi Min Mat Fac Sto Rec Scr Fac Upp Upp Fac Upp Upp Zhi Pro Res Tes Res Combat Hostiles Destroyed 441 | . 10 3 . 11 39 17 40 10 85 24 1 15 40 5 5 . 13 16 41 66 Melee 2 | . . . . . . . . . . . . . 2 . . . . . . . Guns 129 | . 3 . . . 11 15 8 . 27 18 1 15 10 2 3 . 10 6 . . Cannons 202 | . 4 . . . 12 1 25 10 55 . . . 19 1 . . . 5 31 39 AOE 66 | . 3 3 . 11 13 . 7 . 3 6 . . 6 1 . . . . 3 10 Classes Destroyed 36 | 2 7 . . . 5 2 . . 11 . 2 . . 2 . . 1 . 1 3 Worker 33 | . 1 1 . 1 7 . 6 . . 4 . . 3 . . . . 4 2 4 Builder 33 | . 3 . . . 3 . 3 1 . 5 . . 5 . . . . . 5 8 Tunneler 9 | 6 1 . . 1 . . . . . 1 . . . . . . . . . . Hauler 18 | . 2 . . . 4 1 6 . . . . . 1 . . . . . 2 2 Recycler 35 | 1 1 . . . 2 1 6 6 . 4 . . 6 . . . . 2 1 5 Minesweeper 1 | . . . . . . . . . . . . . . 1 . . . . . . Mechanic 3 | . . . . . . 1 1 . . . . . . . . . . . . 1 Operator 6 | . 2 . . . 1 1 . . 1 . . . . . . . . . . 1 Drone 2 | . . . . . . . . . . . . . . . . . 2 . . . Turret 1 | . . . . . . . . . 1 . . . . . . . . . . . Watcher 20 | . 2 . . . 3 1 2 . . 4 . . 2 . . . . 2 1 3 Swarmer 68 | . 3 3 . 11 9 1 8 . . 16 . 5 6 1 . . 5 . . . Saboteur 2 | . . . . . . . . . . . . . . . . . . . 1 1 Grunt 126 | . 7 . . . 16 13 17 2 . 1 . 9 17 1 3 . 4 3 12 21 Brawler 9 | . . . . . 1 . . . . . . 1 . 1 . . . 1 1 4 Duelist 7 | . . . . . 2 . . 1 . . . . . . . . . . 1 3 Protector 2 | . . . . . 1 . . 1 . . . . . . . . . . . . Sentry 40 | . . . . . 9 1 10 4 . 3 . . 5 1 . . . 1 2 4 Demolisher 1 | . . . . . . . . . . . . . . . . . . . . 1 Specialist 2 | . . . . . . . . . . . . . . . . . . . . 2 Hunter 30 | . . . . . 1 . . . . 1 . . 2 . . . . 2 10 14 Programmer 59 | . . . . . . 2 4 2 . 3 . . 10 . . . 2 9 13 14 Heavy 1 | . . . . . . . . . . . . . . . . . . . . 1 Behemoth 4 | . . . . . . . . . . . 1 . 1 . 1 . . . . 1 Protovariant L 1 | . . . . . . . . . . . . . . . . . . . 1 . Bolteater 3 | . . . . . . . . . 3 . . . . . . . . . . . Federalist 8 | . . . . . . . . . 8 . . . . . . . . . . . Explorer 5 | . . . . . . . . . 5 . . . . . . . . . . . Ranger 3 | . . . . . . . . . 3 . . . . . . . . . . . Guru 6 | . . . . . . . . . 6 . . . . . . . . . . . Scientist 9 | . . . . . . . . . 9 . . . . . . . . . . . Scrapper 40 | . . . . . . . . . 40 . . . . . . . . . . . Elite 20 | . . . . . . . . . 20 . . . . . . . . . . . Zionite 2 | . . . . . . . . . 2 . . . . . . . . . . . Decomposer 2 | . . . . . . . . . . . 2 . . . . . . . . . Packrat 2 | . . . . . . . . . . . . . . 2 . . . . . . Samaritan 5 | . . . . . . . . . . . 3 . . . . . 2 . . . Tinkerer 2 | . . . . . . . . . 2 . . . . . . . . . . . Master Thief 2 | . . . . . . . . . . . . . . 1 1 . . . . . Thug 1 | . . . . . . . 1 . . . . . . . . . . . . . Best Kill Streak 29 | 6 6 4 . 5 14 6 10 10 14 8 1 7 8 4 3 . 4 5 6 29 Combat Bots Only 20 | . 3 3 . 4 9 5 6 7 12 5 1 7 7 4 3 . 4 4 6 20 Max Kills in Single Turn 5 | 1 3 2 . 3 5 2 3 2 2 3 1 2 4 1 1 . 2 1 2 5 Gunslinging 1 | . . . . . . . 1 . . . . 1 . . . . 1 . . . Exploded 4 | . 1 2 . 3 4 . 2 . 2 3 . . 2 1 . . . . 2 3 Melee 1 | . . . . . . . . . . . . . 1 . . . . . . . Uniques/NPCs Destroyed . | . . . . . . . . . . . . . . . . . . . . . Combat | -11 -10 -10 -10 -9 -8 -7 -7 -7 -7 -5 -5 -5 -4 -4 -4 -4 -3 -3 -3 -2 -------- Run | Yrd Mat Min Exi Min Mat Fac Sto Rec Scr Fac Upp Upp Fac Upp Upp Zhi Pro Res Tes Res Hostile Shots Fired 2605 | . 27 5 . 17 222 125 296 74 259 83 26 89 216 6 40 . 47 108 402 563 Missed 641 | . 9 1 . 8 62 32 107 22 53 20 15 20 49 2 6 . 9 23 95 108 Damage Taken 34559 | . 300 26 . 92 2686 1272 2044 500 2970 1112 197 1098 3223 46 805 . 680 943 5495 11070 Core 2166 | . 54 . . 9 175 137 157 78 248 24 75 33 138 . 21 . 28 59 486 444 Absorbed by Shields 2662 | . . . . . . 112 72 . . . . . 210 . . . 84 619 1229 336 Reduced by Siege Mode 3443 | . . . . . . . . . 252 . 9 186 233 . 160 . 73 100 760 1670 Redirected to Shielding 101 | . . . . . 32 14 55 . . . . . . . . . . . . . Ignored by Resistances 1814 | . . . . . . . . 46 447 . . . . . . . 64 38 88 1131 Regen/Repaired (Parts) 4034 | . . . . . 116 132 . . 518 . . . . . . . . . 705 2563 Core Remaining (%) 50 | 100 . . . 74 68 . . . 11 . . 77 . . . . 22 . 2 . Volleys Fired 1275 | 14 32 3 . 11 110 46 101 24 254 67 13 66 85 17 24 19 24 49 132 184 Largest 4 | 2 2 2 . 2 2 3 3 3 3 4 3 4 4 4 4 1 4 3 4 4 Hottest 377 | 70 136 136 . 63 136 185 225 144 144 100 75 100 133 133 133 24 133 153 332 377 Shots Fired 2836 | 28 60 4 . 12 208 138 279 72 401 244 33 242 169 42 74 19 98 128 298 287 Gun 1480 | 28 30 . . . 91 131 67 . 210 237 30 241 118 36 63 19 97 78 4 . Cannon 1275 | . 26 2 . . 107 7 206 72 176 . 1 . 46 4 9 . 1 50 289 279 Launcher 53 | . 4 2 . 12 10 . 6 . 4 3 . . 3 2 . . . . 3 4 Special 28 | . . . . . . . . . 11 4 2 1 2 . 2 . . . 2 4 Kinetic 1396 | 14 . . . . 19 39 72 72 386 237 31 241 106 4 9 . 1 6 104 55 Thermal 1148 | 14 26 2 . . 107 99 201 . . . . . 58 36 63 19 97 122 179 125 Explosive 53 | . 4 2 . 12 10 . 6 . 4 3 . . 3 2 . . . . 3 4 Electromagnetic 211 | . 30 . . . 72 . . . . . . . . . . . . . 10 99 Impact 3 | . . . . . . . . . 3 . . . . . . . . . . . Robot Hit Streak 88 | 7 11 1 . 2 17 21 20 21 17 13 21 29 16 11 19 22 21 88 35 22 Robot Miss Streak 6 | 3 3 3 . 2 6 3 3 2 4 5 1 5 3 2 2 1 3 1 2 3 Penetration Max 3 | . . . . . . 1 1 . 3 . . . 2 . . . . . 1 1 Secondary Targets 27 | . . . . . 2 3 3 . 2 3 . 8 2 . . . 4 . . . Max Gunslinging Chain 2 | . . . . . 1 1 1 . 1 1 . 2 1 . . . 2 . . . Shots Hit Robots 2010 | 18 33 1 . 2 150 96 171 41 282 135 35 183 153 28 56 17 73 109 209 218 Core Hits 957 | 8 23 5 . 15 90 42 107 23 124 65 6 64 70 19 16 7 29 35 70 139 Critical Kills 18 | . . . . . 1 . 1 . 2 . . 1 1 . . . . 1 5 6 Critical Parts Destroyed 14 | . 1 . . . . . . . 1 2 4 1 5 . . . . . . . Critical Strikes 113 | 1 2 . . . 4 5 3 4 19 2 5 2 17 4 5 1 7 5 11 16 Burn 33 | 1 . . . . . 5 1 . . . . . 5 4 5 1 7 4 . . Meltdown 14 | . . . . . 1 . 1 . . . . . . . . . . 1 5 6 Destroy 9 | . . . . . . . . . 3 1 2 2 1 . . . . . . . Blast 41 | . . . . . . . 1 4 16 . . . 6 . . . . . 6 8 Corrupt 5 | . 1 . . . 2 . . . . . . . . . . . . . . 2 Smash 10 | . 1 . . . . . . . . 1 3 . 5 . . . . . . . Sever 1 | . . . . . 1 . . . . . . . . . . . . . . . Melee Attacks 237 | . 4 . . . 20 20 10 . 9 32 16 6 51 . . . . 30 37 2 Impact 118 | . 4 . . . . 10 10 . 9 32 16 6 31 . . . . . . . Slashing 99 | . . . . . 20 10 . . . . . . . . . . . 30 37 2 Piercing 20 | . . . . . . . . . . . . . 20 . . . . . . . Sneak Attacks 57 | . 1 . . . 6 2 1 . . 9 5 . 20 . . . . 6 7 . Combat Hostiles 9 | . . . . . . . . . . . . . 9 . . . . . . . Follow-up Attacks . | . . . . . . . . . . . . . . . . . . . . . Damage Inflicted 82784 | 220 1142 241 . 875 4784 2134 5760 1274 15968 3973 878 3272 9317 1019 1415 398 1938 3873 9603 14700 Guns 22346 | 220 297 . . . 1136 1906 985 . 2987 2358 490 3272 2217 655 1385 398 1938 2010 92 . Cannons 44206 | . 382 41 . . 1562 75 3324 1259 12570 . . . 3932 41 30 . . 1424 8184 11382 Explosions 11089 | . 405 189 . 787 1677 . 1324 . 411 652 . . 1356 323 . . . . 742 3223 Melee 4798 | . 42 . . . 383 153 118 . . 900 388 . 1812 . . . . 439 563 . Ramming 345 | . 16 11 . 88 26 . 9 15 . 63 . . . . . . . . 22 95 Kinetic 34070 | 109 . . . . 278 551 1185 1259 15557 2358 490 3272 4809 41 30 . . 142 2333 1656 Thermal 29280 | 111 382 41 . . 1790 1430 3124 . . . . . 1691 655 1385 398 1938 3292 5600 7443 Explosive 9126 | . 405 189 . 787 1449 . 1324 . 411 652 . . 1005 323 . . . . 742 1839 Electromagnetic 5165 | . 297 . . . 858 . . . . . . . . . . . . . 343 3667 Impact 3227 | . 42 . . . . . 118 . . 900 388 . 1779 . . . . . . . Slashing 1538 | . . . . . 383 153 . . . . . . . . . . . 439 563 . Piercing 33 | . . . . . . . . . . . . . 33 . . . . . . . Highest Corruption 13 | . 1 1 1 1 1 1 . . . 6 6 6 7 7 7 7 8 3 4 13 Average Corruption 4 | . 1 1 1 1 1 1 . . . 4 6 6 4 7 7 7 7 2 3 4 Corruption Purged 2 | . . . . . . 2 . . . . . . . . . . . . . . Corruption Blocked 37 | . . . . . . . . . . . . . . . . . . 7 19 11 Effects 460 | . 4 7 5 6 15 3 . . . 25 35 80 50 36 64 14 29 17 59 11 Message Errors 99 | . . 3 3 . 6 1 . . . 5 8 15 14 8 10 3 8 3 10 2 Matter Fused 133 | . . 1 1 1 4 1 . . . 5 11 22 13 15 23 6 8 4 14 4 Heat Flow Errors 53 | . 2 2 1 1 . . . . . 4 4 13 2 3 6 3 . 3 8 1 Energy Discharges 53 | . 1 . . 2 2 1 . . . 1 5 10 5 5 9 1 3 1 4 3 Parts Rejected 9 | . 1 . . . . . . . . 1 . . 2 . . . . 1 4 . Parts Fused 6 | . . . . . 1 . . . . 1 . 2 . . 1 . 1 . . . Data Loss (minor) 47 | . . . . 1 2 . . . . 3 4 10 8 3 6 . 2 1 7 . Data Loss (major) 31 | . . 1 . 1 . . . . . 1 1 3 3 2 4 1 3 3 8 . Misfires 11 | . . . . . . . . . . 2 1 1 2 . . . 2 1 2 . Alerts 6 | . . . . . . . . . . . . . . . 3 . 2 . 1 . Weapon Failures 12 | . . . . . . . . . . 2 1 4 1 . 2 . . . 1 1 Overload Shots . | . . . . . . . . . . . . . . . . . . . . . Overflow Damage 6629 | . 157 . . 61 121 53 84 6 1168 630 370 . 1829 . . . . 209 1005 936 Projectiles 3732 | . 6 . . . 5 . 73 6 1168 . . . 887 . . . . 67 761 759 Explosions 631 | . 109 . . 61 116 . 11 . . 61 . . 74 . . . . . 25 174 Melee 2266 | . 42 . . . . 53 . . . 569 370 . 868 . . . . 142 219 3 Knockbacks 92 | . . . . 1 . . 4 3 27 6 . . 7 . 2 . . 1 32 9 Impact 12 | . . . . 1 . . . . . 6 . . 3 . . . . . 1 1 Kinetic 77 | . . . . . . . 4 3 27 . . . 4 . 1 . . 1 30 7 Secondary 3 | . . . . . . . . . . . . . . . 1 . . . 1 1 Self-Inflicted Damage 958 | . 107 . . 25 194 . 89 . . 31 . . 23 . . . . . 134 355 Shots 18 | . 3 . . 1 5 . 2 . . . . . 1 . . . . . 1 5 Rammed 34 | . 1 2 . 12 3 1 2 . . 1 . . . . . . . . 3 9 Targets Rammed 38 | . 2 2 . 13 3 1 2 1 . 1 . . . . . . . . 3 10 Kicked . | . . . . . . . . . . . . . . . . . . . . . Crushed 4 | . 1 . . 1 . . . 1 . . . . . . . . . . . 1 Highest Temperature 723 | 52 338 185 252 224 252 134 379 250 342 332 231 327 369 203 281 107 36 212 451 723 Average Temperature 84 | 21 78 72 130 61 60 41 31 73 62 77 89 111 85 47 92 58 6 56 116 133 Received Heat Transfer 8583 | . 69 . . . 1152 547 653 240 1293 54 24 543 407 . 509 . 35 50 916 2091 Effects 16 | . 1 . . . . . . . . . . 4 . . . . . . 4 7 Shutdowns 1 | . . . . . . . . . . . . . . . . . . . 1 . Energy Bleed 3 | . . . . . . . . . . . . 1 . . . . . . . 2 Interference 9 | . . . . . . . . . . . . 3 . . . . . . 3 3 Matter Decay 3 | . 1 . . . . . . . . . . . . . . . . . . 2 Siege Activations 110 | . . . . . . . . . 22 . 2 5 14 2 3 . 5 11 24 22 Total Turns 2473 | . . . . . . . . . 1034 . 23 79 216 73 79 . 60 145 355 409 Longest Duration 448 | . . . . . . . . . 448 . 20 19 34 47 59 . 22 30 39 75 Robots Corrupted 33 | . 1 . . . 2 . . . . 6 2 . 5 . . . . . 3 14 Combat Hostiles 19 | . . . . . 2 . . . . . . . 2 . . . . . 3 12 Parts Fried 84 | . 2 . . . 5 . . . . 15 5 . 15 . . . . . 4 38 Impact Corruptions 65 | . 2 . . . . . . . . 19 24 . 19 . . . . . . 1 Robots Melted 28 | . . . . . 1 1 1 . . . . . 1 1 2 . 4 6 5 6 Combat Hostiles 24 | . . . . . 1 1 . . . . . . 1 1 2 . 4 5 4 5 Parts Melted 149 | 3 1 . . . 12 9 10 . 6 . 3 . 4 7 10 . 31 27 10 16 Heat Transferred 40088 | 407 666 74 . . 3024 3034 4958 . . . . . 2900 1700 3400 950 4400 5010 4614 4951 Parts Sabotaged 3 | . . . . . . . . . . . . . 3 . . . . . . . Parts Stolen 6 | . . . . . . . . . . . . 4 . 1 1 . . . . . Parts Stripped . | . . . . . . . . . . . . . . . . . . . . . Power Chain Reactions 4 | . . . . . 3 . . . . . . . . . . . . . . 1 Alert | -11 -10 -10 -10 -9 -8 -7 -7 -7 -7 -5 -5 -5 -4 -4 -4 -4 -3 -3 -3 -2 ------- Run | Yrd Mat Min Exi Min Mat Fac Sto Rec Scr Fac Upp Upp Fac Upp Upp Zhi Pro Res Tes Res Peak Influence 1745 | 35 214 113 . 128 576 395 1153 425 . 604 . . 1177 . . . . 174 808 1745 Initial 454 | . 22 44 . . 25 257 141 425 . . . . . . . . . 54 84 454 Average 285 | 19 75 46 . 38 235 252 650 223 . 249 . . 430 . . . . 68 297 810 Maximum Alert Level 5 | . 1 . . . 2 1 4 2 . 2 . . 4 . . . . . 3 5 Low Security (%) 49 | 100 95 100 . 100 49 28 5 42 . 32 . . 32 . . . . 100 28 . Level 1 25 | . 4 . . . 29 71 18 49 . 41 . . 17 . . . . . 51 1 Level 2 16 | . . . . . 21 . 29 8 . 26 . . 31 . . . . . 17 48 Level 3 5 | . . . . . . . 35 . . . . . 12 . . . . . 3 20 Level 4 3 | . . . . . . . 10 . . . . . 6 . . . . . . 25 Level 5 . | . . . . . . . . . . . . . . . . . . . . . High Security . | . . . . . . . . . . . . . . . . . . . . 2 Max Security . | . . . . . . . . . . . . . . . . . . . . . Squads Dispatched 97 | . 3 . . 1 11 6 13 . . 7 . . 14 . . . . 6 15 21 Investigation 20 | . 2 . . 1 3 2 2 . . 3 . . 5 . . . . . 2 . Extermination 27 | . . . . . . 3 4 . . 1 . . 6 . . . . 5 5 3 Reinforcement 23 | . 1 . . . 2 1 3 . . 3 . . 1 . . . . 1 4 7 Assault 10 | . . . . . 1 . 4 . . . . . 2 . . . . . 1 2 Garrison 17 | . . . . . 5 . . . . . . . . . . . . . 3 9 Intercept . | . . . . . . . . . . . . . . . . . . . . . Searches Triggered . | . . . . . . . . . . . . . . . . . . . . . Construction Impeded 5 | . . . . . 1 . 1 . . . . . . . . . . . 1 2 Haulers Reinforced 6 | . . . . . . . 2 . . . . . 1 . . . . . 1 2 Active Scanning Responses . | . . . . . . . . . . . . . . . . . . . . . Cargo Convoy Interrupts 1 | . . . . . . . . . . 1 . . . . . . . . . . Stealth | -11 -10 -10 -10 -9 -8 -7 -7 -7 -7 -5 -5 -5 -4 -4 -4 -4 -3 -3 -3 -2 --------- Run | Yrd Mat Min Exi Min Mat Fac Sto Rec Scr Fac Upp Upp Fac Upp Upp Zhi Pro Res Tes Res Distress Signals 18 | . 2 . . . 2 1 . . . 3 . . 3 . . . . . 1 6 Communications Jammed 159 | . . . . . . . . . . . . . . . . . . . 159 . Distress Signals 158 | . . . . . . . . . . . . . . . . . . . 158 . Times Spotted 602 | . 20 4 . 10 57 25 57 10 91 47 1 19 63 7 6 . 14 22 63 86 Peak Tracking Total 14 | . 3 3 . 4 5 6 8 7 9 9 1 5 7 5 3 . 5 4 8 14 Tactical Retreats 25 | . 1 . . . 1 3 3 . 5 3 . . 3 . . . 1 2 2 1 Traps | -11 -10 -10 -10 -9 -8 -7 -7 -7 -7 -5 -5 -5 -4 -4 -4 -4 -3 -3 -3 -2 ------- Run | Yrd Mat Min Exi Min Mat Fac Sto Rec Scr Fac Upp Upp Fac Upp Upp Zhi Pro Res Tes Res Traps Triggered 4 | . . . . . 1 1 1 . . . . . . . . . . . 1 . Indirectly . | . . . . . . . . . . . . . . . . . . . . . Trap Hack Attempts . | . . . . . . . . . . . . . . . . . . . . . Triggered . | . . . . . . . . . . . . . . . . . . . . . Disarmed . | . . . . . . . . . . . . . . . . . . . . . Reprogrammed . | . . . . . . . . . . . . . . . . . . . . . Reused . | . . . . . . . . . . . . . . . . . . . . . Traps Extracted . | . . . . . . . . . . . . . . . . . . . . . Installed . | . . . . . . . . . . . . . . . . . . . . . Triggered . | . . . . . . . . . . . . . . . . . . . . . Most Traps Carried 6 | . . . . . . . . . . . . . . 6 6 6 6 . . . Machines | -11 -10 -10 -10 -9 -8 -7 -7 -7 -7 -5 -5 -5 -4 -4 -4 -4 -3 -3 -3 -2 ---------- Run | Yrd Mat Min Exi Min Mat Fac Sto Rec Scr Fac Upp Upp Fac Upp Upp Zhi Pro Res Tes Res Machines Disabled 60 | . 3 2 . . 1 1 4 . 21 1 . . 11 . . . . 2 11 3 Max in Single Turn 6 | . 2 2 . . 1 1 2 . 1 1 . . 6 . . . . 1 1 1 Garrison Access 5 | . . . . . 1 . . . . 2 . . 1 . . . . 1 . . Machines Repaired . | . . . . . . . . . . . . . . . . . . . . . Machines Dismantled . | . . . . . . . . . . . . . . . . . . . . . Machines Sabotaged . | . . . . . . . . . . . . . . . . . . . . . Overloaded Fab Kills . | . . . . . . . . . . . . . . . . . . . . . Hacking | -11 -10 -10 -10 -9 -8 -7 -7 -7 -7 -5 -5 -5 -4 -4 -4 -4 -3 -3 -3 -2 --------- Run | Yrd Mat Min Exi Min Mat Fac Sto Rec Scr Fac Upp Upp Fac Upp Upp Zhi Pro Res Tes Res Machines Accessed 120 | . 8 . 2 1 16 9 10 13 6 16 1 . 12 . . 3 . 6 12 5 Terminals 61 | . 6 . . . 10 5 8 6 . 8 . . 5 . . . . 4 6 3 Fabricators 14 | . . . . . . 2 . . . 3 . . 4 . . . . 1 2 2 Repair Stations 7 | . . . . . 1 1 . . . 2 . . 2 . . . . . 1 . Recycling Units 14 | . 2 . . . 2 1 2 6 . 1 . . . . . . . . . . Scanalyzers 4 | . . . . . 2 . . . . . . . . . . . . . 2 . Garrison Access 6 | . . . . . 1 . . . . 2 . . 1 . . . . 1 1 . Total Hacks 329 | . 28 . 2 1 47 24 24 24 34 37 1 . 33 . . 10 . 27 28 9 Successful 183 | . 7 . 2 1 28 13 13 14 34 17 1 . 18 . . 10 . 11 12 2 Failed 145 | . 21 . . . 18 11 11 10 . 20 . . 15 . . . . 16 16 7 Catastrophic 26 | . 2 . . . 7 . 3 1 . 3 . . . . . . . 2 3 5 Database Lockouts 1 | . . . . . 1 . . . . . . . . . . . . . . . Manual 160 | . 28 . 1 . 29 9 16 14 . 18 . . 13 . . . . 18 12 2 Terminals 169 | . 26 . . . 28 10 15 12 . 18 . . 17 . . . . 23 14 6 Fabricators 39 | . . . . . . 7 . . . 10 . . 11 . . . . 2 6 3 Repair Stations 15 | . . . . . 2 4 . . . 4 . . 3 . . . . . 2 . Recycling Units 25 | . 2 . . . 2 3 9 7 . 2 . . . . . . . . . . Scanalyzers 13 | . . . . . 10 . . . . . . . . . . . . . 3 . Garrison Access 15 | . . . . . 5 . . . . 3 . . 2 . . . . 2 3 . Terminal Hacks 90 | . 2 . 2 1 7 4 5 6 34 4 1 . 4 . . 10 . 6 4 . Record 46 | . . . 1 . . . . 5 34 . . . . . . 6 . . . . Part Schematic 3 | . 1 . . . 1 . . . . 1 . . . . . . . . . . Robot Analysis 6 | . 1 . . . . . . . . . . . . . . 4 . 1 . . Open Door 4 | . . . . 1 . . 2 . . . 1 . . . . . . . . . Branch Access Points 4 | . . . . . . 1 . . . 1 . . 1 . . . . 1 . . Terminal Index 4 | . . . . . 1 1 . . . . . . 1 . . . . . 1 . Fabricator Index 1 | . . . . . . . . . . . . . 1 . . . . . . . Alert Level 3 | . . . . . 1 . . . . . . . . . . . . 1 1 . Unreport Threat 7 | . . . . . 3 . 1 1 . . . . . . . . . 1 1 . Locate Traps 4 | . . . . . . 1 2 . . 1 . . . . . . . . . . Recall Extermination 1 | . . . . . . . . . . . . . . . . . . 1 . . Hauler Manifests 6 | . . . . . 1 1 . . . 1 . . 1 . . . . 1 1 . Derelict Proto ID Bank 1 | . . . 1 . . . . . . . . . . . . . . . . . Fabricator Hacks 20 | . . . . . . 4 . . . 5 . . 7 . . . . . 3 1 Network Status 5 | . . . . . . 1 . . . 1 . . 1 . . . . . 1 1 Load Schematic 9 | . . . . . . 1 . . . 2 . . 4 . . . . . 2 . Build 6 | . . . . . . 2 . . . 2 . . 2 . . . . . . . Repair Station Hacks 10 | . . . . . 2 4 . . . 2 . . 1 . . . . . 1 . Scan Component 7 | . . . . . 1 2 . . . 2 . . 1 . . . . . 1 . Repair 3 | . . . . . 1 2 . . . . . . . . . . . . . . Recycling Unit Hacks 2 | . . . . . . . 2 . . . . . . . . . . . . . Report Inventory 1 | . . . . . . . 1 . . . . . . . . . . . . . Retrieve Components 1 | . . . . . . . 1 . . . . . . . . . . . . . Scanalyzer 8 | . . . . . 8 . . . . . . . . . . . . . . . Insert Component 5 | . . . . . 5 . . . . . . . . . . . . . . . Analyze 3 | . . . . . 3 . . . . . . . . . . . . . . . Garrison Access Hacks 4 | . . . . . . . . . . 2 . . 1 . . . . 1 . . Seal Access 4 | . . . . . . . . . . 2 . . 1 . . . . 1 . . Unauthorized Hacks 49 | . 5 . . . 11 1 6 8 . 4 . . 5 . . . . 4 4 1 Terminals 30 | . 3 . . . 8 . 2 2 . 3 . . 4 . . . . 4 3 1 Assimilate 3 | . . . . . 3 . . . . . . . . . . . . . . . Botnet 22 | . 3 . . . 4 . 2 2 . 2 . . 3 . . . . 3 2 1 Operators 4 | . . . . . 1 . . . . 1 . . 1 . . . . . 1 . Skim 1 | . . . . . . . . . . . . . . . . . . 1 . . Fabricators 3 | . . . . . . . . . . 1 . . 1 . . . . . 1 . Haulers 1 | . . . . . . . . . . . . . . . . . . . 1 . Recompile 2 | . . . . . . . . . . 1 . . 1 . . . . . . . Repair Stations . | . . . . . . . . . . . . . . . . . . . . . Recycling Units 15 | . 2 . . . 2 1 4 6 . . . . . . . . . . . . Reject 2 | . . . . . . . 2 . . . . . . . . . . . . . Recyclers 2 | . . . . . . 1 1 . . . . . . . . . . . . . Mask 1 | . . . . . . . 1 . . . . . . . . . . . . . Tunnel 10 | . 2 . . . 2 . . 6 . . . . . . . . . . . . Scanalyzers . | . . . . . . . . . . . . . . . . . . . . . Garrison Access 1 | . . . . . 1 . . . . . . . . . . . . . . . Jam 1 | . . . . . 1 . . . . . . . . . . . . . . . Data Cores Recovered 2 | . 2 . . . . . . . . . . . . . . . . . . . Used . | . . . . . . . . . . . . . . . . . . . . . Hacking Detections 90 | . 6 . . . 14 8 9 6 . 14 . . 11 . . . . 5 12 5 Full Trace Events 12 | . 2 . . . . 1 1 . . 2 . . 4 . . . . . 2 . Feedback Events 4 | . 1 . . . . . . . . 1 . . 2 . . . . . . . Corruption 3 | . 1 . . . . . . . . 1 . . 1 . . . . . . . Hackware Fried 1 | . . . . . . . . . . . . . 1 . . . . . . . Feedback Blocked . | . . . . . . . . . . . . . . . . . . . . . Robot Schematics Acquired . | . . . . . . . . . . . . . . . . . . . . . Robots Built . | . . . . . . . . . . . . . . . . . . . . . Authchips . | . . . . . . . . . . . . . . . . . . . . . Time . | . . . . . . . . . . . . . . . . . . . . . Total Robot Build Rating . | . . . . . . . . . . . . . . . . . . . . . Part Schematics Acquired 39 | . 1 . . . 4 . . . 7 15 2 3 7 . . . . . . . Parts Built 8 | . . . . . . 4 . . . 2 . . 2 . . . . . . . Authchips 1 | . . . . . . . . . . 1 . . . . . . . . . . Time 380 | . . . . . . 72 . . . 122 . . 186 . . . . . . . Total Part Build Rating 41 | . . . . . . 12 . . . 15 . . 14 . . . . . . . Parts Repaired 3 | . . . . . 1 2 . . . . . . . . . . . . . . Time 83 | . . . . . 13 70 . . . . . . . . . . . . . . Parts Recycled . | . . . . . . . . . . . . . . . . . . . . . Recycled Matter . | . . . . . . . . . . . . . . . . . . . . . Retrieved Matter . | . . . . . . . . . . . . . . . . . . . . . Retrieved Components 1 | . . . . . . . 1 . . . . . . . . . . . . . Parts Scanalyzed 4 | . . . . . 4 . . . . . . . . . . . . . . . Part Schematics Acquired 3 | . . . . . 3 . . . . . . . . . . . . . . . Parts Damaged 1 | . . . . . 1 . . . . . . . . . . . . . . . Bothacking | -11 -10 -10 -10 -9 -8 -7 -7 -7 -7 -5 -5 -5 -4 -4 -4 -4 -3 -3 -3 -2 ------------ Run | Yrd Mat Min Exi Min Mat Fac Sto Rec Scr Fac Upp Upp Fac Upp Upp Zhi Pro Res Tes Res Used RIF Installer . | . . . . . . . . . . . . . . . . . . . . . Robots Hacked 13 | . . . . . . . . . 4 1 1 1 1 . 1 . . . 2 2 Non-combat 2 | . . . . . . . . . 1 . . . . . . . . . 1 . Combat 4 | . . . . . . . . . 3 . 1 . . . . . . . . . Robot Hacks Applied 7 | . . . . . . . . . 5 . 1 . . . . . . . 1 . parse_system 6 | . . . . . . . . . 5 . 1 . . . . . . . . . find_fabricator 1 | . . . . . . . . . . . . . . . . . . . 1 . Manual 8 | . . . . . . . . . . 1 1 1 1 . 1 . . . 1 2 Relay Couplers Released 3 | . . . . . . . . . . . . . . . . . . 3 . . Programmers 3 | . . . . . . . . . . . . . . . . . . 3 . . Fabnet Peak Effective % . | . . . . . . . . . . . . . . . . . . . . . Robots Rewired 11 | . . . . . . . . 11 . . . . . . . . . . . . Allies Hacked 1 | . . . . . . . 1 . . . . . . . . . . . . . Hacks Repelled . | . . . . . . . . . . . . . . . . . . . . . Allies | -11 -10 -10 -10 -9 -8 -7 -7 -7 -7 -5 -5 -5 -4 -4 -4 -4 -3 -3 -3 -2 -------- Run | Yrd Mat Min Exi Min Mat Fac Sto Rec Scr Fac Upp Upp Fac Upp Upp Zhi Pro Res Tes Res Total Allies 28 | . . 2 . 3 3 . 2 11 1 1 . . 3 . . . . . 1 1 Largest Group 11 | . . 1 1 3 3 3 2 11 11 1 . . 1 . . . . . 1 1 Highest-Rated Group 435 | . . 31 31 40 40 30 62 254 435 26 . . 49 . . . . . 26 10 Highest-Rated Ally 191 | . . 31 31 16 16 10 31 40 191 26 . . 49 . . . . . 26 10 Total Orders 25 | . . . . 2 5 . . 2 7 6 . 2 . . . . . . . 1 STAY 10 | . . . . 1 3 . . 1 3 1 . . . . . . . . . 1 FOLLOW 9 | . . . . 1 2 . . 1 4 1 . . . . . . . . . . EXPLORE 4 | . . . . . . . . . . 2 . 2 . . . . . . . . RETURN 2 | . . . . . . . . . . 2 . . . . . . . . . . Ally Attacks 208 | . . 7 . . 25 . 35 . 134 . . . 7 . . . . . . . Total Damage 7897 | . . 85 . . 280 . 499 . 6800 . . . 233 . . . . . . . Kills 54 | . . 2 . . 1 . 6 . 43 . . . 2 . . . . . . . Allies Corrupted . | . . . . . . . . . . . . . . . . . . . . . Allies Melted . | . . . . . . . . . . . . . . . . . . . . . Field Lobotomies 1 | . . . . . . . . . 1 . . . . . . . . . . . Intel | -11 -10 -10 -10 -9 -8 -7 -7 -7 -7 -5 -5 -5 -4 -4 -4 -4 -3 -3 -3 -2 ------- Run | Yrd Mat Min Exi Min Mat Fac Sto Rec Scr Fac Upp Upp Fac Upp Upp Zhi Pro Res Tes Res Robot Analysis Total 6 | . 1 . . . . . . . . . . . . . . 4 . 1 . . Derelict Logs Recovered 15 | . . 3 . 3 . . . . . . 2 2 . 3 2 . . . . . Drone Launches 6 | . . . . . . . . . . 3 . 3 . . . . . . . . Drone Recoveries 3 | . . . . . . . . . . 3 . . . . . . . . . . Decoded 0b10 Intel 35 | . . . . . . . . . . . . . 35 . . . . . . . Garrisons 1 | . . . . . . . . . . . . . 1 . . . . . . . Patrols 5 | . . . . . . . . . . . . . 5 . . . . . . . Investigations 1 | . . . . . . . . . . . . . 1 . . . . . . . Guards 28 | . . . . . . . . . . . . . 28 . . . . . . . Exploration | -11 -10 -10 -10 -9 -8 -7 -7 -7 -7 -5 -5 -5 -4 -4 -4 -4 -3 -3 -3 -2 ------------- Run | Yrd Mat Min Exi Min Mat Fac Sto Rec Scr Fac Upp Upp Fac Upp Upp Zhi Pro Res Tes Res Turns Passed 52489 | 228 2075 900 874 2010 4493 1870 2032 1789 17280 1509 1346 2778 2327 1260 2229 427 952 1658 2723 1729 Spaces Moved 18756 | 57 685 552 276 562 1398 538 836 685 6120 988 755 785 734 508 932 171 334 611 749 480 Core 304 | 3 . . . . . . . . 266 . . . . . . . . . . 35 Treads 10722 | 54 685 552 276 562 1398 441 213 685 3817 . 262 545 43 . . . 29 137 749 274 Legs . | . . . . . . . . . . . . . . . . . . . . . Wheels 7730 | . . . . . . 97 623 . 2037 988 493 240 691 508 932 171 305 474 . 171 Hover . | . . . . . . . . . . . . . . . . . . . . . Flight . | . . . . . . . . . . . . . . . . . . . . . Fastest Speed 28 | 50 160 160 160 320 240 145 145 232 28 110 110 260 205 225 225 210 225 165 249 50 Average Speed 228 | 154 160 160 314 320 240 222 172 235 248 110 162 326 243 225 225 210 248 205 260 221 Slowest Speed 1700 | 160 160 160 320 320 240 240 320 236 1700 110 260 485 485 225 225 310 450 360 360 270 Overloaded Moves . | . . . . . . . . . . . . . . . . . . . . . Propulsion Burnouts . | . . . . . . . . . . . . . . . . . . . . . Robots Hopped . | . . . . . . . . . . . . . . . . . . . . . Cave-ins Triggered . | . . . . . . . . . . . . . . . . . . . . . Teleports 1 | . . . . . . . . . . . . . . . . . . . 1 . Exploration Rate (%) 69 | 5 97 94 65 103 76 21 94 99 97 76 95 97 22 79 97 59 49 17 83 24 Regions Visited 20 Branch Regions 13 Pre-discovered Areas 17 | . 2 1 1 1 2 . . 6 . . . . . 1 . 3 . . . . Known Exits Taken 8 | . . 1 . . . 1 . . . 1 1 . 1 1 . . . 1 1 . Unknown Exits Taken 12 | 1 1 . 1 1 1 . 1 1 1 . . 1 . . 1 1 1 . . . Scrap Searched 23 | . . 1 . 2 . . . . 7 . 3 4 . 1 2 . 3 . . . Spaces Dug 341 | . 17 4 . 74 34 16 30 . 6 38 11 6 11 4 4 . . 25 33 28 Terrain Destroyed 1023 | . 52 6 . 106 98 16 127 19 65 51 11 7 151 23 9 . 9 33 161 79 Melee 118 | . 2 . . . 14 16 9 . . 18 8 6 6 . . . . 21 17 1 Projectile 308 | . . . . . 1 . 53 19 40 . 3 1 46 4 9 . 9 12 70 41 AOE 597 | . 50 6 . 106 83 . 65 . 25 33 . . 99 19 . . . . 74 37 Terrain Rammed . | . . . . . . . . . . . . . . . . . . . . . Walls Destroyed . | . . . . . . . . . . . . . . . . . . . . . Machines Disabled . | . . . . . . . . . . . . . . . . . . . . . Actions | -11 -10 -10 -10 -9 -8 -7 -7 -7 -7 -5 -5 -5 -4 -4 -4 -4 -3 -3 -3 -2 --------- Run | Yrd Mat Min Exi Min Mat Fac Sto Rec Scr Fac Upp Upp Fac Upp Upp Zhi Pro Res Tes Res Total 26008 | 166 1595 565 286 732 2293 1074 1195 808 7854 1280 840 926 1119 601 1027 232 413 883 1222 897 Wait 4040 | 86 836 . . 133 633 408 77 14 1138 90 20 23 127 64 45 4 33 64 120 125 Move 18737 | 56 684 551 275 561 1397 537 835 684 6119 988 754 784 733 507 931 170 333 610 748 480 Hop . | . . . . . . . . . . . . . . . . . . . . . Pick Up 317 | 1 16 3 5 3 33 15 31 2 80 15 7 8 18 4 8 8 7 15 24 14 Fast Attach 189 | 8 3 . . 1 18 4 23 2 46 2 1 5 13 . 1 9 . 24 21 8 Attach 188 | . 2 . 2 2 21 7 16 1 30 9 8 5 19 . 3 3 2 8 20 30 Detach 79 | 1 2 . 2 1 1 . 5 . 17 4 6 3 11 . . 3 . 5 10 8 Swap 480 | . 8 3 1 6 27 23 43 2 49 60 12 19 50 7 10 1 9 41 76 33 Drop 353 | . 6 3 1 1 30 13 52 3 112 13 3 7 12 2 5 15 4 37 31 3 Fire 1275 | 14 32 3 . 11 110 46 101 24 254 67 13 66 85 17 24 19 24 49 132 184 Melee 237 | . 4 . . . 20 20 10 . 9 32 16 6 51 . . . . 30 37 2 Ram . | . . . . . . . . . . . . . . . . . . . . . Kick . | . . . . . . . . . . . . . . . . . . . . . Crush 37 | . 2 2 . 13 3 1 2 1 . . . . . . . . . . 3 10 Escape Stasis . | . . . . . . . . . . . . . . . . . . . . . Rewire 76 | . . . . . . . . 75 . . . . . . . . 1 . . . Trap . | . . . . . . . . . . . . . . . . . . . . . Miscellaneous . | . . . . . . . . . . . . . . . . . . . . . Route ------- -11/Scrapyard -10/Materials (discovered 5 exits: [*Mat x3] / [*Min x2]) -10/Mines (discovered 3 exits: [*Mat x2] / *Exi) -10/Exiles -9/Mines (discovered 2 exits: *Mat x2) -8/Materials -7/Factory (discovered 4 exits: [*Fac] / *Sto / Low x2) -7/Storage (discovered 2 exits: [*Fac] / *Rec) -7/Recycling (discovered 2 exits: *Fac / *Scr) -7/Scraptown (discovered 2 exits: *Fac x2) -5/Factory (discovered 4 exits: *Fac x2 / *Upp x2) -5/Upper Caves (discovered 2 exits: *Upp / [*War]) -5/Upper Caves (discovered 2 exits: *Fac / [*War]) -4/Factory (discovered 2 exits: *Upp x2) -4/Upper Caves -4/Upper Caves (discovered 2 exits: *Res / *Zhi) -4/Zhirov -3/Proximity Caves -3/Research (discovered 4 exits: Res / Arm / *Tes x2) -3/Testing -2/Research History --------- Turn | Location | Event 6 | -11/Scrapyard | Discovered new exit (range 16) 229 | -11/Scrapyard | Entered Materials 318 | -10/Materials | Build established: Mutant 604 | -10/Materials | Discovered new exit (range 14) 747 | -10/Materials | Discovered new exit (range 9) 1188 | -10/Materials | Discovered new exit (range 15) 2034 | -10/Materials | Discovered new exit (range 15) 2207 | -10/Materials | Discovered new exit (range 15) 2304 | -10/Materials | Entered Mines 2380 | -10/Mines | Discovered new exit (range 11) 2381 | -10/Mines | Identified exit to Exiles 2479 | -10/Mines | Learned Materials stockpile data 2500 | -10/Mines | Discovered new exit (range 9) 2668 | -10/Mines | Learned location of Zion (-6) 2700 | -10/Mines | Deemed a non-threat by the Exiles lab entrance 2807 | -10/Mines | Received a Rocket Launcher from a helpful Derelict 3204 | -10/Mines | Entered Exiles 3204 | -10/Exiles | Accompanied by 1 ally 3234 | -10/Exiles | Led the pair of lost Derelicts to a safe place 3271 | -10/Exiles | Met 8R-AWN 3316 | -10/Exiles | Met EX-HEX 3549 | -10/Exiles | Met EX-BIN 3651 | -10/Exiles | Aligned with FarCom system 3654 | -10/Exiles | Given EX-Vault access code 3731 | -10/Exiles | Opened EX-Vault 3744 | -10/Exiles | Found Field Lobotomy Kit 3751 | -10/Exiles | Found Cloak of Protection 3771 | -10/Exiles | Found Supersonic Drone Bay 3836 | -10/Exiles | Warned to stay clear of 0b10 Research branches 3863 | -10/Exiles | Exiles lab attacked by MAIN.C 4051 | -10/Exiles | Discovered new exit (range 10) 4078 | -10/Exiles | Stole three prototypes: Cloak of Protection, Supersonic Drone Bay, Field Lobotomy Kit 4078 | -10/Exiles | Entered Mines 4108 | -9/Mines | Met a Derelict shopkeep closing up shop 4510 | -9/Mines | Learned 2 Materials zone layouts 5420 | -9/Mines | Discovered new exit (range 9) 5478 | -9/Mines | Assisted by bots powering up and referring to "LRC-V3" 5644 | -9/Mines | Learned Materials security intel 5803 | -9/Mines | Discovered new exit (range 15) 6088 | -9/Mines | Entered Materials 6088 | -8/Materials | Accompanied by 3 allies 6088 | -8/Materials | Evolved 4 slots: Propulsion x2, Utility x2 6195 | -8/Materials | Lost 4 allies 6348 | -8/Materials | Garrison activated, responded to threat 6458 | -8/Materials | Garrison activated, responded to threat 6762 | -8/Materials | Build established: Scavenger-Mutant 6836 | -8/Materials | Discovered new exit (range 3) 8217 | -8/Materials | Garrison activated, responded to threat 9004 | -8/Materials | Central database locked down 9658 | -8/Materials | Repaired Lgt. Treads 9688 | -8/Materials | First assault squad dispatched 9795 | -8/Materials | Destroyed 9 combat bots 9805 | -8/Materials | Lost 9 parts (1p4n4u) 10581 | -8/Materials | Entered Factory 10581 | -7/Factory | Accompanied by 3 allies 10581 | -7/Factory | Evolved 2 slots: Utility x1, Weapon x1 10583 | -7/Factory | FarCom data flow suspended 10598 | -7/Factory | Identified exit to Storage 10598 | -7/Factory | Identified exit to Lower Caves 10857 | -7/Factory | Fabricated Thermic Laser? 11153 | -7/Factory | Repaired Missile Launcher 11186 | -7/Factory | Repaired Imp. Treads 11564 | -7/Factory | Discovered new exit (range 16) 11843 | -7/Factory | Fabricated Seismic Detector? 12410 | -7/Factory | Build established: Skirmisher 12451 | -7/Factory | Entered Storage 12819 | -7/Storage | Build established: Gunner 13120 | -7/Storage | Discovered new exit (range 16) 13250 | -7/Storage | Build established: Scavenger-Gunner 13446 | -7/Storage | Met a pair of Derelict thieves 13465 | -7/Storage | Used back door to open Recycling access 13465 | -7/Storage | Discovered new exit (range 5) 14051 | -7/Storage | First assault squad dispatched 14125 | -7/Storage | Build established: Gunner 14483 | -7/Storage | Entered Recycling 14484 | -7/Recycling | Met a Zionite searching for Scraptown 14484 | -7/Recycling | Joined Warlord attack on 0b10 via Recycling 14843 | -7/Recycling | Discovered new exit (range 16) 15122 | -7/Recycling | Core integrity fell below 50% 15155 | -7/Recycling | Destroyed 7 combat bots 15575 | -7/Recycling | Build established: Commander-Gunner 16206 | -7/Recycling | Scanned before Scraplab entrance 16232 | -7/Recycling | Discovered new exit (range 11) 16272 | -7/Recycling | Entered Scraptown 16272 | -7/Scraptown | Accompanied by 10 allies 16735 | -7/Scraptown | Heard Great Nut preacher, LISTEN AND RECITE! 17106 | -7/Scraptown | Discovered new exit (range 7) 17354 | -7/Scraptown | Visited CR-KLE's Repair Center 17401 | -7/Scraptown | Visited Red Mages 17587 | -7/Scraptown | Visited Cave Peace 18009 | -7/Scraptown | Turned away by UFD registrar 18025 | -7/Scraptown | Visited Spacefarers 18157 | -7/Scraptown | Visited The Evicted 18233 | -7/Scraptown | Visited Comm Corps 18963 | -7/Scraptown | CR-KLE repaired 8 parts 19238 | -7/Scraptown | Assimilated Triborg with FLK Orb 19239 | -7/Scraptown | Attacked by Scraptown defenders 19327 | -7/Scraptown | Lost 9 allies 19594 | -7/Scraptown | Build established: Tank 20492 | -7/Scraptown | Found Prototype Device 20492 | -7/Scraptown | Identified Exp. Recalibrator 20638 | -7/Scraptown | Found Tri-treads 20664 | -7/Scraptown | Found Siege Cannon 20697 | -7/Scraptown | Found Tri-treads 20948 | -7/Scraptown | Destroyed 12 combat bots 21047 | -7/Scraptown | Core integrity fell below 20% 21140 | -7/Scraptown | Destroyed 7 combat bots 21345 | -7/Scraptown | Destroyed 9 combat bots 21590 | -7/Scraptown | Build established: Scavenger-Tank 21990 | -7/Scraptown | Visited DA-N13 Charitable Foundation 22027 | -7/Scraptown | Found DCF Scrap (30 items) 22307 | -7/Scraptown | Visited Scrap Suit Storage 22759 | -7/Scraptown | Visited Curators Association 22828 | -7/Scraptown | Visited A0-MCA Data Center 23832 | -7/Scraptown | Visited Supply Room 23893 | -7/Scraptown | Visited Research Penetration Think Tank 23935 | -7/Scraptown | Visited Derelict Rescue Squad 24015 | -7/Scraptown | Discovered new exit (range 3) 24210 | -7/Scraptown | Visited Infowarlord's Domain 24253 | -7/Scraptown | Visited Abandonware Association 24276 | -7/Scraptown | Learned abandonware demo "HACKBUD.EXE" 24276 | -7/Scraptown | Learned abandonware demo "MELTYB.EXE" 24347 | -7/Scraptown | Visited Junk Cannon Lab 24406 | -7/Scraptown | Found Prototype Special Weapon 24406 | -7/Scraptown | Identified Junk Cannon 24655 | -7/Scraptown | Found Prototype Reactor 24655 | -7/Scraptown | Identified MA-1KR's Cyclogen 24671 | -7/Scraptown | Found Prototype Storage 24671 | -7/Scraptown | Identified Vmp. Humpback 24693 | -7/Scraptown | Found Prototype Wheel 24693 | -7/Scraptown | Identified Ballwheel 24953 | -7/Scraptown | Build established: Mutant 26019 | -7/Scraptown | Found DRS Beacon 26757 | -7/Scraptown | Found Prototype Processor 26757 | -7/Scraptown | Identified Expert System 27712 | -7/Scraptown | Tech Extrapolator generated special schematic: Vmp. Humpback 32765 | -7/Scraptown | Found Siege Articulator 32866 | -7/Scraptown | Found Siege Articulator 32929 | -7/Scraptown | Found Siege Articulator 32938 | -7/Scraptown | Found Siege Articulator 33015 | -7/Scraptown | Build established: Hauler-Mutant 33410 | -7/Scraptown | Found Spectral Analyzer 33491 | -7/Scraptown | Found Expert System 33552 | -7/Scraptown | Entered Factory 33552 | -5/Factory | Evolved 4 slots: Utility x3, Weapon x1 33576 | -5/Factory | Discovered new exit (range 134) 33579 | -5/Factory | Discovered new exit (range 100) 33583 | -5/Factory | Discovered new exit (range 101) 33712 | -5/Factory | Noticed a derelict Sapper rigging charges 34015 | -5/Factory | Build established: Hauler-Tank 34297 | -5/Factory | Identified exit to Upper Caves 34750 | -5/Factory | Fabricated Hvy. Siege Treads (x1) 34788 | -5/Factory | Tech Extrapolator generated special schematic: Vmp. Heavy Siege Treads 34817 | -5/Factory | Fabricated Arm. Heavy Treads? 35035 | -5/Factory | Tech Extrapolator generated special schematic: Machine Rigger 35055 | -5/Factory | Cargo convoy interrupted 35061 | -5/Factory | Entered Upper Caves 35313 | -5/Upper Caves | Build established: Hauler-Skirmisher 35348 | -5/Upper Caves | A Derelict revealed a hidden shortcut to "reach the base" 35402 | -5/Upper Caves | Tech Extrapolator generated special schematic: Energy Deflector 35420 | -5/Upper Caves | Spotted B-75 Beast 35519 | -5/Upper Caves | Identified exit to Upper Caves 35706 | -5/Upper Caves | Destroyed B-75 Beast 35797 | -5/Upper Caves | Learned 4 Factory zone layouts 36407 | -5/Upper Caves | Entered another Upper Caves area 36687 | -5/Upper Caves | Expert System configures itself against Swarmer targets 36701 | -5/Upper Caves | Discovered new exit (range 17) 36866 | -5/Upper Caves | Destroyed 7 combat bots 36948 | -5/Upper Caves | Expert System configures itself against Grunt targets 37102 | -5/Upper Caves | Encountered a Warlord checkpoint 37161 | -5/Upper Caves | Spotted B-75 Beast 37319 | -5/Upper Caves | Learned Factory non-interactive machine intel 37431 | -5/Upper Caves | Learned Factory terminal intel 37501 | -5/Upper Caves | Spotted HJ-EXI(f) 37502 | -5/Upper Caves | Encountered a Master Thief 37502 | -5/Upper Caves | Spotted BL-8H4(f) 37503 | -5/Upper Caves | Encountered a Master Thief 37504 | -5/Upper Caves | Supersonic Drone Bay stolen by Master Thief 37508 | -5/Upper Caves | Spotted AA-MI5(f) 37509 | -5/Upper Caves | Encountered a Master Thief 37509 | -5/Upper Caves | Arm. Heavy Treads stolen by Master Thief 37512 | -5/Upper Caves | Hvy. Siege Treads stolen by Master Thief 37523 | -5/Upper Caves | Discovered new exit (range 14) 37817 | -5/Upper Caves | Build established: Hauler-Gunner 39185 | -5/Upper Caves | Entered Factory 39185 | -4/Factory | Evolved 2 slots: Utility x2 39187 | -4/Factory | Loaded intel: 250 non-interactive machine locations 39188 | -4/Factory | Loaded intel: 26 terminal locations 39736 | -4/Factory | Lost 3 parts (1n2w) 39879 | -4/Factory | Fabricated Vmp. Heavy Siege Treads? 39953 | -4/Factory | Mak. Hacking Suite fried by hacking feedback 40046 | -4/Factory | Destroyed 7 combat bots 40058 | -4/Factory | Discovered new exit (range 9) 40118 | -4/Factory | Identified exit to Upper Caves 40331 | -4/Factory | Build established: Hauler-Tank 40535 | -4/Factory | Spotted B-86 Titan 40554 | -4/Factory | Destroyed B-86 Titan 40776 | -4/Factory | Fabricated Vmp. Heavy Siege Treads? 40935 | -4/Factory | First assault squad dispatched 41355 | -4/Factory | Tech Extrapolator generated special schematic: Active Sensor Spoofer 41357 | -4/Factory | Lost 3 parts (1p1u1w) 41512 | -4/Factory | Entered Upper Caves 41512 | -4/Upper Caves | Spotted OA-I9D(f) 41513 | -4/Upper Caves | Field Lobotomy Kit stolen by Master Thief 41514 | -4/Upper Caves | Encountered a Master Thief 41515 | -4/Upper Caves | Destroyed OA-I9D(f) 41610 | -4/Upper Caves | Build established: Hauler-Gunner 41698 | -4/Upper Caves | Identified exit to Upper Caves 42463 | -4/Upper Caves | Attracted the attention of an 0b10 checkpoint 42772 | -4/Upper Caves | Entered another Upper Caves area 42775 | -4/Upper Caves | Spotted HC-TTD(f) 42776 | -4/Upper Caves | Encountered a Master Thief 42776 | -4/Upper Caves | Spotted PN-28X(f) 42777 | -4/Upper Caves | Encountered a Master Thief 42779 | -4/Upper Caves | Vmp. Heavy Siege Treads stolen by Master Thief 42789 | -4/Upper Caves | Destroyed HC-TTD(f) 42937 | -4/Upper Caves | Discovered new exit (range 7) 43232 | -4/Upper Caves | Learned Research interactive machine intel 43551 | -4/Upper Caves | Spotted B-86 Titan 43571 | -4/Upper Caves | Core integrity fell below 50% 43571 | -4/Upper Caves | Destroyed B-86 Titan 44222 | -4/Upper Caves | Learned location of 1 exit from Research 44297 | -4/Upper Caves | Discovered new exit (range 13) 45001 | -4/Upper Caves | Entered Zhirov 45003 | -4/Zhirov | Discovered new exit (range 3) 45041 | -4/Zhirov | Met Zhirov 45083 | -4/Zhirov | Learned location of Command (-1) 45095 | -4/Zhirov | Zhirov requested help retrieving the SGEMP Prototype 45127 | -4/Zhirov | Found Alien Artifact 45127 | -4/Zhirov | Identified Integrated Reactor 45127 | -4/Zhirov | Installed Integrated Reactor, increased core energy generation (+10) 45160 | -4/Zhirov | Found Alien Artifact 45327 | -4/Zhirov | Build established: Hauler-Mutant 45428 | -4/Zhirov | Entered Proximity Caves 45719 | -3/Proximity Caves | Build established: Hauler-Gunner 46182 | -3/Proximity Caves | Lost 3 parts (1n2u) 46354 | -3/Proximity Caves | Discovered new exit (range 5) 46380 | -3/Proximity Caves | Entered Research 46380 | -3/Research | Evolved 2 slots: Power x1, Utility x1 46381 | -3/Research | Identified exit to Research 46382 | -3/Research | Loaded intel: 42 interactive machine locations 46428 | -3/Research | Discovered new exit (range 3) 46739 | -3/Research | Spotted B-86 Titan 46790 | -3/Research | Build established: Hacker-Tank 47086 | -3/Research | Found Unknown Launcher 47086 | -3/Research | Identified Gamma Bomb Array 47275 | -3/Research | Build established: Hacker-Gunner 47461 | -3/Research | Identified exit to Armory 47461 | -3/Research | Identified exit to Testing 47862 | -3/Research | Build established: Hacker-Tank 47898 | -3/Research | Expert System configures itself against Programmer targets 48038 | -3/Research | Entered Testing 48201 | -3/Testing | Found Prototype Energy Cannon 48201 | -3/Testing | Identified Imp. Potential Cannon 48519 | -3/Testing | Spotted Striker 48522 | -3/Testing | Spotted Striker 48647 | -3/Testing | Spotted PL-NCYAU2CBPD 48657 | -3/Testing | Garrison activated, responded to threat 48667 | -3/Testing | Destroyed PL-NCYAU2CBPD 48765 | -3/Testing | Found Prototype Energy Cannon 48766 | -3/Testing | Identified Null Cannon 48871 | -3/Testing | Found Prototype Hackware 49000 | -3/Testing | Found Prototype Protection 49263 | -3/Testing | Identified Transdimensional Reconstructor 49263 | -3/Testing | Warped through subspace 49699 | -3/Testing | Build established: Hacker-Skirmisher 49918 | -3/Testing | Core integrity fell below 50% 50081 | -3/Testing | Found Prototype Device 50081 | -3/Testing | Identified Exp. EM Disruption Field 50173 | -3/Testing | Identified SHELL Armor 50211 | -3/Testing | Lost 3 parts (1n2u) 50319 | -3/Testing | Discovered exit to Research (range 9) 50362 | -3/Testing | Identified Ghost Barrier 50391 | -3/Testing | Core integrity fell below 20% 50441 | -3/Testing | Lost 3 parts (1p2u) 50538 | -3/Testing | First assault squad dispatched 50667 | -3/Testing | Build established: Hacker-Gunner 50761 | -3/Testing | Entered Research 50761 | -2/Research | Evolved 2 slots: Utility x2 51086 | -2/Research | Garrison activated, responded to threat 51127 | -2/Research | Lost 3 parts (1u2w) 51393 | -2/Research | Build established: Hacker-Tank 51678 | -2/Research | Destroyed 7 combat bots 51842 | -2/Research | Destroyed 7 combat bots 51855 | -2/Research | Build established: Hacker-Gunner 51889 | -2/Research | Lost 11 parts (4p4n2u1w) 51960 | -2/Research | Garrison activated, responded to threat 52164 | -2/Research | Build established: Scavenger-Gunner 52255 | -2/Research | Core integrity fell below 50% 52256 | -2/Research | Garrison activated, responded to threat 52306 | -2/Research | First assault squad dispatched 52319 | -2/Research | Spotted B-90 Cyclops 52419 | -2/Research | Destroyed B-90 Cyclops 52434 | -2/Research | System corruption reached 10% 52440 | -2/Research | Core integrity fell below 20% 52444 | -2/Research | High security lockdown imminent 52473 | -2/Research | Released all parts (9) 52487 | -2/Research | Lost 15 parts (1p1n7u6w) 52490 | -2/Research | Destroyed by G-73 Enforcer with Phase Gun Last Messages --------------- 52471_ Power failure averted by Adv. Cryofiber Web. 52471_ Overheating: Matter decay (-22). 52471_ Y-72 Warden destroyed. 52473_ Power failure averted by Adv. Cryofiber Web. 52473_ Released Adv. Cryofiber Web. 52473_ Released Huge Storage Unit. 52473_ Released Expert System. 52473_ Released Vmp. Heavy Siege Treads. 52473_ Released Siege Articulator. 52473_ Released Rnf. Quantum Reactor. 52473_ Released Lgt. Quantum Reactor. 52473_ Released Exp. Energy Well. 52473_ Released Null Cannon. 52475_ Overheating: Energy bleed (-21). 52475_ Acquired 6 matter. 52475_ Acquired 12 matter. 52476_ Overheating: Matter decay (-22). 52478_ Acquired 40 matter. 52478_ Acquired 18 matter. 52479_ Acquired 43 matter. Map ----- +----------------------------------------------------+ | ?????????????????????????????????????????????????? | | ??????????????????????##?????????????????????????? | | ?????????????????????? ?????????????????????????? | | ????????????????????? ???????????????????????? | | ????????????????????"""S""???????????????????????? | | ???????###########??""" ""???????????????????????? | | ???????# !#?? ??#??????????????????? | | ???????# # ? #??????????????????? | | ???????# ""G"" # #??????????????????? | | ???????# " " # """ """ #??????????????????? | | ???????# "*" # """ """ ##?????????????????? | | ????##?# = % #] """ """ * ??????????????????? | | ??### ?# %=! #?? ????????????????????? | | ??# ## #???? ??????????#???????????? | | ### # "#######+########### ####????????? | | # !|*% % % #????????? | | ### #!%!= #????????? | | " !%/!] % k +????????? | | ""[%=%!!| k #????????? | | % ]*==*% =! #????????? | | [ k #????????? | | " R""" """ """ #????????? | | =!| % % k u """ """ """ # ???????? | | !![= %%/ """ """ """ """ ##???????? | | ]%* " % k g # ???????? | | "" " #%" @ # ???????? | | """ # % # ???????? | | """" #!! """ """ """ """ # ???????? | | """" #!! """ """ """ """ # ???????? | | ########!! """ """ """ """ # ???????? | | ?# # ???????? | | ???? ??# # ???????? | | ???? ??# # ???????? | | ???? ??# ## #########+### # ???????? | | # #? #?????????? # # ???????? | | ####+##?? #?###?????????? # # ???????? | | ??? #?????????????? # ##???????? | | ???? ???????????????? # ##???????? | | ?????????????????????????? ##?##### | | ????????????????????????? ##?####### | | # ##?????????????????????????#### # ? # | | # # ?????????????????????????##"" # ? # | | # # ?????????????????????????##"T # """" # | | + # ?????????????????????????#### # """" # | | # # #?????############### # """" # | | # ###########?????############### # """" # | | # # ##?????## # + " # | | # # ######### # # # | | # # ######### """ """ # # # | | # # """ + + """ """ # ########## | +----------------------------------------------------+ Best States ------------- Heat Dissipation 163 Coolant Potential 100 Energy Generation 55 Energy Capacity 2670 Matter Stores 300 Matter Capacity 500 Sight Range 24 Terrain Scan Density 10 ECM Strength 2 Jamming Range 16 Cloak Strength 5 Additional Mass Support 12 Base Temperature (-) 200 Corruption Block 20 Armor Coverage 1800 Resistance: KI 30 Resistance: EM 75 Utility Shielding 66 Weapon Cycling 25 Evasion (%) 54 Targeting Accuracy 6 Recoil Reduction 10 Particle Charging 30 Offensive Hacking 25 Defensive Hacking 34 Authchip Count 1 Trap Extractor Capacity 8 Item Schematics ----------------- Seismic Detector | -10/Materials | Hacked Hacking Suite | -8/Materials | Hacked Lgt. Armor Plating | -8/Materials | Scanalyzed Structural Scanner | -8/Materials | Scanalyzed Imp. Utility Shielding | -8/Materials | Scanalyzed Spk. Treads | -7/Scraptown | Extrapolated Spk. Medium Treads | -7/Scraptown | Extrapolated Mak. Coolant Network | -7/Scraptown | Extrapolated Vmp. Humpback | -7/Scraptown | Extrapolated Mak. Trap Scanner | -7/Scraptown | Extrapolated Mak. Light Armor Plating | -7/Scraptown | Extrapolated Mak. Shrapnel Gun | -7/Scraptown | Extrapolated Mak. Terrain Scanner | -5/Factory | Extrapolated 0b10 Decoder Chip [Generic] | -5/Factory | Extrapolated Mak. Power Source | -5/Factory | Extrapolated Mak. Leg | -5/Factory | Extrapolated 0b10 Decoder Chip [Scout] | -5/Factory | Extrapolated 0b10 Decoder Chip [Skirmisher] | -5/Factory | Extrapolated Mak. Hacking Suite | -5/Factory | Extrapolated Mapping Drone Bay | -5/Factory | Extrapolated Mak. Thermal Plating | -5/Factory | Extrapolated Multitool | -5/Factory | Extrapolated Arm. Heavy Treads | -5/Factory | Hacked Vmp. Heavy Siege Treads | -5/Factory | Extrapolated Mak. Medium Armor Plating | -5/Factory | Extrapolated Mak. Ablative Armor | -5/Factory | Extrapolated Machine Rigger | -5/Factory | Extrapolated Humpback | -5/Upper Caves | Extrapolated Energy Deflector | -5/Upper Caves | Extrapolated Mak. Laser | -5/Upper Caves | Extrapolated Hvy. Beamcaster | -5/Upper Caves | Extrapolated Mak. Kinetic Plating | -5/Upper Caves | Extrapolated Tactical Coordination Suite | -4/Factory | Extrapolated Spk. Heavy Treads | -4/Factory | Extrapolated Bore Cannon | -4/Factory | Extrapolated Mak. Flight Unit | -4/Factory | Extrapolated Mak. Propulsion Shielding | -4/Factory | Extrapolated Mak. ECM Suite | -4/Factory | Extrapolated Active Sensor Spoofer | -4/Factory | Extrapolated Robot Schematics ------------------ None Fabricated ------------ Thermic Laser | x2 | -7/Factory | Preloaded Seismic Detector | x2 | -7/Factory Hvy. Siege Treads | x1 | -5/Factory | Preloaded Arm. Heavy Treads | x1 | -5/Factory | Authchip Vmp. Heavy Siege Treads | x1 | -4/Factory Vmp. Heavy Siege Treads | x1 | -4/Factory Alien Tech Used ----------------- Integrated Reactor Transdimensional Reconstructor Achievements -------------- None Challenges ------------ None Game ------ Seed GuidedDefenseStorm Manual? 0 Play Time 07:45:18 Cumulative 726.4 hours Start 2024.08.07 @ 16:20:04 End 2024.08.09 @ 18:34:29 Sessions 21 Manual Loads 0 Difficulty Rogue Special Mode None Game No. 90 Rogue 75 Adventurer 5 Explorer 10 Win Type - Total 28 Types 6/7/6/0/3/1/4/0/1 Lore% 61 Gallery% 90 Achievement% 85 Wizard Run 0 Options --------- Layout 0 ASCII 0 Keyboard 0 Movement Numpad Keybinds 0 Fullscreen 1 Font 24/Smallcaps Map View 130x56 Zoom Use 0% Tactical HUD 1 Map Filters NONE Filters NONE Steam 1 RUN: 0d591285-c34c-4f73-ba77-ea37f3bb4e39